bitfinex/quotes_SOLUSD_20250929
["timestamp","ask_amount","ask_price","bid_price","bid_amount"]
[1759172485403,131.6,211.08,211.03,0.72]
[1759172486110,131.6,211.08,211.04,0.72]
[1759172486278,131.6,211.08,211.05,17.30374792]
[1759172486479,131.6,211.14,211.06,14.31559401]
[1759172486693,2.21818709,211.2,211.06,14.31559401]
[1759172486694,0.68,211.17,211.07,2.93818709]
[1759172486897,0.68,211.2,211.11,0.14216157]
[1759172487098,0.68,211.2,211.12,14.31559401]
[1759172487492,0.68,211.19,211.12,0.72]
[1759172487801,0.68,211.21,211.12,0.72]
[1759172488003,0.68,211.21,211.12,15.25300066]
[1759172488189,0.68,211.21,211.14,16.57667897]
[1759172488507,33.26,211.22,211.14,16.57667897]
[1759172488684,33.26,211.22,211.15,0.72]
[1759172489084,0.78,211.23,211.15,0.72]
[1759172489295,0.1,211.23,211.16,13.59559401]
[1759172489511,0.1,211.23,211.17,0.72]
[1759172490002,0.1,211.23,211.17,2.93818709]
[1759172490210,0.78,211.23,211.18,4.7352969]
[1759172490403,0.68,211.22,211.18,4.7352969]
[1759172490784,0.68,211.21,211.16,4.7355381]
[1759172490991,0.68,211.2,211.16,4.7355381]
[1759172491291,0.68,211.22,211.16,4.7355381]
[1759172494095,132.28,211.21,211.12,14.25348373]
[1759172494404,0.68,211.2,211.12,4.73664266]
[1759172494592,0.68,211.19,211.12,4.73664266]
[1759172495194,0.68,211.19,211.12,19.03762773]
[1759172496512,0.68,211.19,211.12,31.59923439]
[1759172497608,0.68,211.19,211.11,4.73685021]
[1759172497609,0.68,211.18,211.11,4.73685021]
[1759172497792,0.68,211.18,211.12,0.72]
[1759172497994,0.68,211.2,211.12,0.72]
[1759172499101,0.68,211.2,211.13,4.73641832]
[1759172500792,0.68,211.19,211.13,4.73641832]
[1759172501795,5.41525084,211.19,211.13,4.73641832]
[1759172502125,4.73525084,211.19,211.13,4.73641832]
[1759172502290,0.68,211.18,211.13,4.73641832]
[1759172502608,0.68,211.17,211.13,4.73641832]
[1759172502810,131.6,211.16,211.13,5.45641832]
[1759172503011,131.6,211.16,211.13,4.73641832]
[1759172503190,131.6,211.16,211.11,5.45665621]
[1759172503395,132.28,211.16,211.11,5.45665621]
[1759172504117,131.6,211.16,211.12,0.72]
[1759172504810,131.6,211.16,211.13,0.72]
[1759172505524,131.6,211.16,211.12,11.84160666]
[1759172505729,131.6,211.16,211.13,0.72]
[1759172506692,131.6,211.16,211.14,4.73619399]
[1759172507012,131.6,211.15,211.14,4.73619399]
[1759172507389,131.6,211.15,211.13,4.73638812]
[1759172507896,131.6,211.15,211.09,52.12177492]
[1759172507897,132.28,211.15,211.11,4.73664491]
[1759172508093,131.6,211.15,211.11,5.45664491]
[1759172508312,0.68,211.14,211.11,4.73664491]
[1759172508701,131.6,211.15,211.1,4.73709142]
[1759172508904,131.6,211.15,211.11,0.72]
[1759172509623,0.68,211.14,211.1,16.57981998]
[1759172509923,131.6,211.15,211.11,0.72]
[1759172510136,132.28,211.15,211.11,0.72]
[1759172510612,131.6,211.15,211.11,0.72]
[1759172510813,131.6,211.15,211.12,16.57824932]
[1759172510998,131.6,211.15,211.12,17.29824932]
[1759172511607,0.65,211.2,211.13,0.69]
[1759172511911,132.25,211.22,211.14,2.21818709]
[1759172512113,132.25,211.22,211.15,0.69]
[1759172512694,132.25,211.22,211.14,2.21818709]
[1759172512914,0.65,211.21,211.15,4.73596968]
[1759172513213,0.65,211.2,211.15,4.73596968]
[1759172513415,0.65,211.19,211.15,16.5758939]
[1759172514320,136.33444663,211.22,211.15,4.73596968]
[1759172514620,0.65,211.18,211.15,4.73596968]
[1759172515014,0.65,211.17,211.14,16.576625]
[1759172515211,0.65,211.19,211.14,16.576625]
[1759172515520,0.65,211.19,211.14,17.266625]
[1759172517918,136.3344587,211.22,211.14,16.576625]
[1759172517919,0.65,211.18,211.14,16.576625]
[1759172518400,0.65,211.2,211.14,17.266625]
[1759172518796,131.6,211.19,211.14,17.266625]
[1759172519021,132.25,211.19,211.14,17.266625]
[1759172520697,0.65,211.18,211.14,17.266625]
[1759172522025,131.6,211.19,211.15,0.69]
[1759172522326,0.65,211.18,211.14,16.576625]
[1759172522693,0.65,211.18,211.14,17.266625]
[1759172522899,0.65,211.17,211.14,4.73619399]
[1759172523625,0.65,211.16,211.14,4.73619399]
[1759172523916,0.65,211.18,211.13,16.57746412]
[1759172524322,0.65,211.18,211.13,17.26746412]
[1759172525231,0.65,211.18,211.13,50.44746412]
[1759172526020,0.65,211.17,211.11,4.73666356]
[1759172526220,131.6,211.19,211.11,4.73666356]
[1759172526221,0.65,211.16,211.11,4.73666356]
[1759172526425,0.65,211.15,211.11,4.73666356]
[1759172526619,0.65,211.14,211.11,4.73666356]
[1759172527219,0.65,211.13,211.1,4.73709142]
[1759172527405,0.65,211.12,211.1,4.73709142]
[1759172527821,0.65,211.11,211.09,19.01610917]
[1759172528431,0.65,211.11,211.09,14.27881614]
[1759172528633,0.65,211.11,211.09,4.7373102]
[1759172528831,49.774449,211.17,211.09,19.30369572]
[1759172528832,0.65,211.13,211.09,19.30369572]
[1759172529031,0.65,211.12,211.09,4.7373102]
[1759172529334,0.65,211.12,211.08,4.73754026]
[1759172529544,0.65,211.11,211.08,4.73754026]
[1759172530420,0.65,211.13,211.08,4.73754026]
[1759172530614,0.65,211.12,211.08,4.73754026]
[1759172531116,33.85,211.17,211.09,0.69]
[1759172531318,33.85,211.17,211.1,16.57981998]
[1759172531516,33.85,211.17,211.1,17.26981998]
[1759172531813,0.65,211.16,211.1,17.26981998]
[1759172532819,33.2,211.17,211.1,16.57981998]
[1759172533131,0.65,211.15,211.1,4.73709142]
[1759172533317,158.25,211.18,211.11,0.69]
[1759172533523,131.6,211.18,211.12,13.59559401]
[1759172533711,131.6,211.18,211.13,0.69]
[1759172534514,0.72,211.22,211.14,49.79667897]
[1759172534744,0.1,211.23,211.17,13.59559401]
[1759172534935,0.1,211.23,211.18,33.22]
[1759172535136,0.1,211.23,211.19,3.45814477]
[1759172535318,0.1,211.23,211.21,3.45814477]
[1759172535522,0.1,211.23,211.22,33.24]
[1759172535852,0.1,211.23,211.22,33.93]
[1759172536616,0.1,211.23,211.22,38.66440015]
[1759172540547,0.1,211.23,211.22,37.97440015]
[1759172541041,0.1,211.23,211.22,38.66440015]
[1759172541421,0.1,211.23,211.22,37.97440015]
[1759172542120,0.1,211.23,211.22,38.63440015]
[1759172543031,0.1,211.23,211.22,37.97440015]
[1759172543227,0.1,211.23,211.21,4.7346243]
[1759172543459,0.1,211.23,211.22,33.22]
[1759172544623,0.1,211.23,211.22,37.95440015]
[1759172545342,0.1,211.23,211.22,4.73440015]
[1759172545526,0.1,211.23,211.22,37.95440015]
[1759172545919,0.8,211.23,211.22,37.93440015]
[1759172546426,0.1,211.23,211.22,37.93440015]
[1759172546839,0.8,211.23,211.22,37.93440015]
[1759172549349,0.8,211.23,211.21,37.93460909]
[1759172549648,0.7,211.22,211.21,37.93460909]
[1759172549845,0.7,211.22,211.18,4.7352969]
[1759172550047,0.7,211.21,211.15,4.73596968]
[1759172550237,26.0,211.22,211.15,4.73596968]
[1759172550238,0.7,211.2,211.15,37.95596968]
[1759172550544,26.0,211.22,211.15,37.95596968]
[1759172550545,0.7,211.19,211.15,49.7958939]
[1759172550852,0.7,211.18,211.15,49.7958939]
[1759172552655,26.0,211.22,211.15,49.7958939]
[1759172552863,0.7,211.17,211.15,49.7958939]
[1759172553447,0.7,211.17,211.11,0.66]
[1759172553448,0.7,211.16,211.11,4.73686703]
[1759172553640,0.7,211.15,211.11,37.97686703]
[1759172554430,0.7,211.17,211.11,38.63686703]
[1759172554650,0.7,211.16,211.11,37.97686703]
[1759172554849,0.7,211.15,211.11,49.81903462]
[1759172555030,30.73485964,211.2,211.11,49.81903462]
[1759172555353,132.3,211.19,211.1,33.24]
[1759172555646,0.7,211.18,211.1,33.24]
[1759172555851,131.6,211.19,211.1,33.24]
[1759172556043,0.7,211.18,211.1,33.24]
[1759172556347,0.7,211.17,211.11,4.73686703]
[1759172556546,0.7,211.16,211.11,4.73686703]
[1759172556747,0.7,211.15,211.11,4.73686703]
[1759172557333,0.7,211.14,211.11,4.73686703]
[1759172557744,0.7,211.13,211.11,4.73686703]
[1759172558130,4.73558545,211.17,211.11,4.73686703]
[1759172558336,0.7,211.12,211.05,11.84515415]
[1759172558536,0.7,211.11,211.05,11.84515415]
[1759172558754,0.7,211.1,211.06,33.24]
[1759172558935,0.7,211.09,211.06,33.24]
[1759172559457,0.7,211.09,211.06,37.97798919]
[1759172560055,26.0,211.14,211.06,37.97798919]
[1759172560241,0.7,211.11,211.06,37.97798919]
[1759172560440,0.7,211.11,211.06,52.5720738]
[1759172560740,0.7,211.1,211.06,19.3320738]
[1759172560955,0.7,211.09,211.06,19.3320738]
[1759172561158,0.7,211.13,211.06,19.3320738]
[1759172561350,0.7,211.12,211.06,19.3320738]
[1759172561552,131.6,211.11,211.06,19.3320738]
[1759172561754,0.7,211.1,211.06,19.3320738]
[1759172561954,0.7,211.09,211.06,19.3320738]
[1759172562144,132.3,211.11,211.06,19.3320738]
[1759172562857,0.7,211.1,211.06,19.3320738]
[1759172564256,131.6,211.11,211.07,0.66]
[1759172565161,131.6,211.11,211.06,31.17704679]
[1759172565365,131.6,211.17,211.08,13.59559401]
[1759172565549,131.6,211.17,211.09,33.9]
[1759172565743,131.6,211.17,211.1,0.66]
[1759172566240,131.6,211.17,211.11,16.57903462]
[1759172566456,131.6,211.17,211.12,33.9]
[1759172567265,0.7,211.16,211.12,33.24]
[1759172567566,0.7,211.15,211.12,33.24]
[1759172568154,0.7,211.15,211.13,4.73641832]
[1759172568949,0.7,211.14,211.13,4.73641832]
[1759172569176,0.7,211.14,211.11,33.24]
[1759172569345,131.6,211.17,211.1,16.57981998]
[1759172569546,0.7,211.13,211.1,49.81981998]
[1759172570143,0.7,211.16,211.11,0.66]
[1759172570348,0.7,211.15,211.12,4.73664266]
[1759172570544,0.7,211.15,211.12,16.57824932]
[1759172571677,132.29,211.17,211.12,16.57824932]
[1759172571973,131.6,211.17,211.12,16.57824932]
[1759172572287,0.69,211.16,211.12,16.57824932]
[1759172572474,0.69,211.16,211.12,11.84160666]
[1759172573374,0.69,211.15,211.11,4.73686703]
[1759172573573,0.69,211.15,211.11,16.57903462]
[1759172576474,131.6,211.17,211.11,16.57903462]
[1759172576775,0.69,211.14,211.11,16.57903462]
[1759172576954,131.6,211.17,211.11,4.73686703]
[1759172576955,0.69,211.13,211.11,4.73686703]
[1759172579476,0.69,211.12,211.1,4.73709142]
[1759172581267,0.69,211.12,211.08,16.58134889]
[1759172581975,0.69,211.14,211.08,17.26134889]
[1759172582172,164.82,211.17,211.08,17.26134889]
[1759172582173,131.6,211.17,211.1,2.21453277]
[1759172582373,131.6,211.17,211.11,33.88]
[1759172582559,131.6,211.17,211.12,0.68]
[1759172583065,0.69,211.2,211.12,0.68]
[1759172583381,33.91,211.22,211.14,16.57667897]
[1759172583588,33.91,211.22,211.14,17.25667897]
[1759172583958,0.69,211.21,211.14,17.25667897]
[1759172584986,0.69,211.2,211.14,16.57667897]
[1759172585292,0.69,211.19,211.14,16.57667897]
[1759172585471,0.69,211.18,211.14,16.57667897]
[1759172585667,0.69,211.17,211.14,4.73619399]
[1759172585868,0.69,211.16,211.14,4.73619399]
[1759172586809,0.69,211.15,211.09,4.73731583]
[1759172587090,26.0,211.13,211.02,0.68]
[1759172587260,33.93,211.12,211.02,33.92]
[1759172587459,5.42686703,211.11,211.03,4.73866274]
[1759172587687,0.69,211.1,211.03,16.58531961]
[1759172588990,0.69,211.1,211.04,0.68]
[1759172589572,0.69,211.1,211.05,4.73821369]
[1759172589777,0.69,211.09,211.05,4.73821369]
[1759172590576,33.24,211.12,211.05,16.58374792]
[1759172590768,0.69,211.11,211.05,16.58374792]
[1759172591364,11.98225576,211.15,211.05,16.58374792]
[1759172591365,0.69,211.17,211.06,33.94]
[1759172591574,0.69,211.17,211.1,16.57981998]
[1759172591781,0.69,211.19,211.1,49.85981998]
[1759172591979,26.69,211.19,211.11,0.68]
[1759172592270,0.69,211.22,211.12,13.59559401]
[1759172592484,0.69,211.22,211.13,0.68]
[1759172592673,0.69,211.22,211.14,33.28]
[1759172592873,0.69,211.22,211.15,0.68]
[1759172593103,26.0,211.21,211.15,0.68]
[1759172593305,0.1,211.23,211.15,0.68]
[1759172593715,0.1,211.23,211.16,16.57510891]
[1759172593893,0.1,211.23,211.16,17.25510891]
[1759172594389,0.1,211.23,211.16,4.7357454]
[1759172594390,0.72,211.22,211.16,4.7357454]
[1759172594585,0.72,211.21,211.16,4.7357454]
[1759172594778,0.72,211.21,211.16,5.4257454]
[1759172595491,0.72,211.21,211.16,4.7357454]
[1759172596573,0.82,211.23,211.16,0.69]
[1759172597802,0.82,211.23,211.16,0.9744]
[1759172598585,131.6,211.22,211.17,16.574324]
[1759172598891,131.6,211.22,211.18,0.69]
[1759172599082,0.1,211.23,211.19,0.69]
[1759172599284,0.1,211.23,211.2,0.69]
[1759172599591,0.1,211.23,211.17,49.854324]
[1759172599592,0.82,211.23,211.17,50.544324]
[1759172599974,0.82,211.23,211.17,17.264324]
[1759172600288,0.72,211.22,211.17,4.73552114]
[1759172600480,0.72,211.21,211.16,5.02011808]
[1759172600680,0.72,211.2,211.16,5.02011808]
[1759172601236,0.71,211.22,211.16,5.70011808]
[1759172601583,33.38,211.23,211.16,17.53948159]
[1759172601782,33.38,211.23,211.17,0.68]
[1759172602592,0.71,211.22,211.16,16.85948159]
[1759172602781,0.71,211.22,211.16,17.53948159]
[1759172603795,33.38,211.23,211.16,17.53948159]
[1759172606405,0.1,211.23,211.17,0.68]
[1759172606803,0.1,211.23,211.17,2.89453277]
[1759172607105,0.1,211.23,211.19,16.57275438]
[1759172607787,0.1,211.23,211.19,17.25275438]
[1759172608393,0.1,211.23,211.2,0.68]
[1759172609298,0.1,211.23,211.21,4.7346243]
[1759172610786,0.1,211.23,211.19,11.8376817]
[1759172610986,0.1,211.23,211.19,12.5176817]
[1759172611607,0.81,211.23,211.19,11.8376817]
[1759172612008,0.1,211.23,211.19,11.8376817]
[1759172612200,0.1,211.23,211.19,12.5176817]
[1759172613220,0.1,211.23,211.19,17.25275438]
[1759172613792,0.1,211.23,211.2,0.68]
[1759172614011,0.1,211.23,211.21,0.68]
[1759172614216,0.1,211.23,211.19,17.25275438]
[1759172616029,0.1,211.23,211.19,16.57275438]
[1759172616399,0.1,211.23,211.2,0.68]
[1759172616601,0.1,211.23,211.21,0.68]
[1759172617230,0.1,211.23,211.22,4.73440015]
[1759172619209,0.1,211.23,211.2,16.57196969]
[1759172619527,0.1,211.23,211.2,17.25196969]
[1759172619711,0.1,211.23,211.22,0.2844]
[1759172620425,0.1,211.23,211.22,14.79913827]
[1759172620608,0.81,211.23,211.22,0.2844]
[1759172621345,34.07,211.23,211.22,0.2844]
[1759172627138,38.80417601,211.23,211.22,0.2844]
[1759172627641,38.80417601,211.23,211.14,14.56293605]
[1759172627642,66.5919044,211.23,211.14,14.56293605]
[1759172627829,2.21453277,211.18,211.08,0.68]
[1759172628143,33.97,211.17,211.08,5.4175274]
[1759172628343,0.71,211.16,211.08,0.68]
[1759172628547,26.0,211.12,211.05,0.68]
[1759172628839,0.71,211.11,211.04,18.92665673]
[1759172629047,0.71,211.1,211.04,18.92665673]
[1759172629254,0.71,211.1,211.04,19.60665673]
[1759172629547,0.71,211.11,211.05,0.68]
[1759172629924,0.71,211.11,211.04,18.92665673]
[1759172630123,0.71,211.11,211.04,19.60665673]
[1759172630322,26.71,211.11,211.04,19.60665673]
[1759172630539,0.71,211.11,211.04,19.60665673]
[1759172630841,0.71,211.11,211.04,18.92665673]
[1759172631043,0.71,211.11,211.05,0.68]
[1759172632437,0.71,211.11,211.06,4.73798919]
[1759172632611,0.71,211.11,211.06,5.44798919]
[1759172633336,33.28,211.12,211.07,0.71]
[1759172633649,59.28,211.14,211.06,16.58296218]
[1759172633856,30.73628674,211.14,211.08,0.71]
[1759172634018,0.66,211.13,211.06,17.29296218]
[1759172636059,26.0,211.14,211.06,16.58296218]
[1759172636347,131.6,211.18,211.08,2.21453277]
[1759172636649,131.6,211.18,211.09,0.71]
[1759172637327,132.26,211.18,211.1,2.21453277]
[1759172637539,132.26,211.18,211.11,0.71]
[1759172638252,136.99537603,211.18,211.11,4.73686703]
[1759172638417,132.26,211.18,211.11,5.44686703]
[1759172638841,0.66,211.17,211.11,17.28903462]
[1759172641150,0.66,211.17,211.12,0.71]
[1759172641324,0.66,211.17,211.13,0.71]
[1759172641647,131.6,211.18,211.14,0.71]
[1759172641841,131.6,211.18,211.14,4.16908451]
[1759172642339,131.6,211.18,211.14,3.45908451]
[1759172642514,131.6,211.18,211.14,4.16908451]
[1759172642719,131.6,211.18,211.15,16.5758939]
[1759172643238,0.1,211.23,211.16,4.16908451]
[1759172643448,0.1,211.23,211.17,0.71]
[1759172644030,0.1,211.23,211.16,3.45908451]
[1759172644228,0.66,211.22,211.16,4.16908451]
[1759172645347,0.66,211.22,211.17,16.574324]
[1759172645521,0.66,211.22,211.17,17.284324]
[1759172645722,0.66,211.22,211.18,0.71]
[1759172646019,0.1,211.23,211.18,0.71]
[1759172646221,0.76,211.23,211.18,0.71]
[1759172646447,0.76,211.23,211.19,4.73507268]
[1759172646641,0.66,211.22,211.19,4.73507268]
[1759172648155,0.66,211.21,211.19,4.73507268]
[1759172648527,0.66,211.2,211.17,16.574324]
[1759172648840,0.66,211.19,211.17,4.73552114]
[1759172649142,0.66,211.21,211.17,4.73552114]
[1759172649644,0.76,211.23,211.17,5.44552114]
[1759172649847,0.66,211.22,211.17,4.73552114]
[1759172650152,0.1,211.23,211.17,4.73552114]
[1759172650153,0.66,211.21,211.17,4.73552114]
[1759172650744,4.834215,211.23,211.16,4.7357454]
[1759172651051,0.66,211.2,211.16,4.7357454]
[1759172651434,4.834215,211.23,211.16,5.4457454]
[1759172651633,0.66,211.22,211.16,5.4457454]
[1759172652049,0.66,211.21,211.16,5.4457454]
[1759172652234,0.66,211.2,211.16,5.4457454]
[1759172652749,4.834215,211.23,211.16,5.4457454]
[1759172652750,0.1,211.23,211.17,0.71]
[1759172652935,0.1,211.23,211.18,4.7352969]
[1759172653143,0.66,211.22,211.18,4.7352969]
[1759172653359,0.66,211.21,211.18,4.7352969]
[1759172653862,0.1,211.23,211.18,4.7352969]
[1759172654062,0.76,211.23,211.18,5.4452969]
[1759172654361,0.76,211.23,211.18,16.57353915]
[1759172654527,0.1,211.23,211.19,0.66]
[1759172654955,0.1,211.23,211.2,16.57196969]
[1759172655157,0.1,211.23,211.21,0.66]
[1759172655466,0.1,211.23,211.21,4.11908451]
[1759172655763,0.1,211.25,211.22,14.25559401]
[1759172655968,0.1,211.25,211.24,3.45908451]
[1759172656438,0.1,211.25,211.24,4.11908451]
[1759172656961,0.1,211.25,211.24,8.85303641]
[1759172660370,0.1,211.25,211.24,5.3939519]
[1759172662460,0.1,211.25,211.24,18.98954591]
[1759172662666,0.1,211.36,211.3,3.45908451]
[1759172662869,0.1,211.36,211.33,3.45908451]
[1759172663377,0.1,211.36,211.33,4.12908451]
[1759172664160,0.1,211.36,211.34,0.67]
[1759172664365,0.1,211.36,211.35,4.12908451]
[1759172664551,0.1,211.36,211.35,8.19057256]
[1759172665358,0.1,211.36,211.33,3.45908451]
[1759172665555,0.77,211.36,211.32,33.3]
[1759172665756,0.77,211.36,211.32,47.82351234]
[1759172665958,0.1,211.36,211.32,48.49351234]
[1759172666161,0.1,211.36,211.33,4.12908451]
[1759172666669,0.1,211.36,211.34,4.73171193]
[1759172667170,0.1,211.36,211.34,5.40171193]
[1759172667677,0.1,211.36,211.34,4.73171193]
[1759172668977,0.67,211.35,211.34,4.73171193]
[1759172669271,0.1,211.36,211.34,4.73171193]
[1759172669678,0.1,211.36,211.34,5.40171193]
[1759172669873,0.1,211.36,211.34,4.73171193]
[1759172670668,0.1,211.36,211.34,5.40171193]
[1759172670990,0.1,211.36,211.33,4.73193583]
[1759172671160,0.1,211.36,211.33,20.69085992]
[1759172671487,0.1,211.36,211.35,26.0]
[1759172671685,0.1,211.36,211.35,59.26]
[1759172671887,0.1,211.36,211.35,59.93]
[1759172672574,0.1,211.36,211.35,73.52559401]
[1759172672778,0.1,211.36,211.35,78.25708206]
[1759172672974,0.1,211.36,211.35,78.39924363]
[1759172679000,0.1,211.36,211.35,78.37924363]
[1759172680880,0.1,211.36,211.35,77.70924363]
[1759172682000,0.1,211.36,211.35,78.37924363]
[1759172682203,0.1,211.36,211.35,77.70924363]
[1759172682896,0.1,211.36,211.35,78.37924363]
[1759172683882,0.1,211.36,211.35,77.70924363]
[1759172684195,0.1,211.36,211.35,78.37924363]
[1759172684780,0.1,211.36,211.35,77.70924363]
[1759172685582,0.1,211.36,211.35,77.56708206]
[1759172685776,0.1,211.36,211.35,44.32708206]
[1759172685979,0.1,211.36,211.35,77.52708206]
[1759172688993,0.77,211.36,211.35,4.73148805]
[1759172689195,0.77,211.36,211.35,37.95148805]
[1759172689385,0.1,211.36,211.35,37.95148805]
[1759172689703,0.77,211.36,211.35,37.95148805]
[1759172691400,0.77,211.36,211.34,4.73168759]
[1759172691704,0.71,211.35,211.34,37.95168759]
[1759172693390,0.1,211.36,211.34,37.95168759]
[1759172693694,0.1,211.36,211.35,14.27559401]
[1759172695196,0.1,211.36,211.35,19.00708206]
[1759172695493,0.1,211.36,211.35,18.32708206]
[1759172696085,0.1,211.36,211.35,19.00708206]
[1759172697709,0.1,211.36,211.35,18.32708206]
[1759172701503,0.1,211.36,211.35,19.00708206]
[1759172701710,1e-08,211.37,211.35,19.14924363]
[1759172701906,1e-08,211.37,211.36,46.93775558]
[1759172702092,0.71,211.45,211.4,13.59559401]
[1759172702292,0.71,211.45,211.41,33.24]
[1759172703111,0.71,211.44,211.41,33.24]
[1759172704010,26.0,211.49,211.42,4.72992148]
[1759172704211,26.0,211.49,211.43,33.24]
[1759172704212,0.71,211.49,211.43,33.24]
[1759172704397,0.71,211.48,211.43,33.24]
[1759172704718,0.71,211.47,211.43,33.24]
[1759172704891,0.71,211.46,211.37,2.2084734]
[1759172705211,0.71,211.45,211.38,33.24]
[1759172705393,0.71,211.44,211.39,33.24]
[1759172705591,0.71,211.43,211.4,33.24]
[1759172705916,0.71,211.42,211.4,33.24]
[1759172706099,0.71,211.41,211.4,37.9702367]
[1759172706611,0.71,211.44,211.4,75.79615912]
[1759172706912,3.18017418,211.51,211.4,76.47615912]
[1759172707101,0.71,211.45,211.4,76.47615912]
[1759172707302,0.71,211.44,211.4,75.79615912]
[1759172707695,0.71,211.46,211.4,76.47615912]
[1759172709414,13.59559401,211.56,211.4,76.47615912]
[1759172709415,0.71,211.5,211.44,26.0]
[1759172709618,131.6,211.57,211.45,33.24]
[1759172709619,0.71,211.51,211.45,33.24]
[1759172709805,0.71,211.51,211.45,33.92]
[1759172710204,3.18544801,211.56,211.47,13.59559401]
[1759172710407,0.71,211.55,211.48,33.96]
[1759172710804,0.71,211.54,211.48,33.96]
[1759172711000,0.71,211.54,211.49,4.72835595]
[1759172711197,0.71,211.53,211.5,33.32]
[1759172711512,0.71,211.52,211.5,33.32]
[1759172712018,0.71,211.51,211.5,33.32]
[1759172712400,0.71,211.51,211.5,38.04813238]
[1759172712917,0.71,211.51,211.5,33.32]
[1759172713097,0.71,211.51,211.49,33.3]
[1759172713625,11.91600663,211.58,211.5,0.68]
[1759172713626,0.81,211.58,211.5,0.68]
[1759172713801,0.1,211.58,211.51,62.64040215]
[1759172714123,0.1,211.58,211.52,3.34040215]
[1759172714326,0.77,211.58,211.53,41.42786397]
[1759172714495,0.77,211.58,211.54,3.34040215]
[1759172714695,0.67,211.57,211.55,3.34040215]
[1759172714909,26.0,211.56,211.5,33.36]
[1759172715099,26.0,211.56,211.51,3.44012577]
[1759172715100,26.0,211.55,211.51,3.44012577]
[1759172715334,26.67,211.55,211.52,3.44012577]
[1759172715506,2.8784734,211.54,211.44,11.82330634]
[1759172715707,0.67,211.53,211.45,33.38]
[1759172715900,0.67,211.52,211.46,33.38]
[1759172716102,0.67,211.51,211.46,33.38]
[1759172716303,0.67,211.5,211.46,33.38]
[1759172716527,0.67,211.49,211.46,33.38]
[1759172716732,0.67,211.48,211.46,33.38]
[1759172716901,4.72746182,211.53,211.43,38.10969777]
[1759172716902,0.67,211.47,211.43,38.10969777]
[1759172717101,0.67,211.52,211.44,0.67]
[1759172717309,26.0,211.55,211.44,14.26559401]
[1759172717617,0.67,211.53,211.44,14.26559401]
[1759172717926,26.67,211.55,211.45,0.67]
[1759172718225,26.67,211.55,211.46,33.48]
[1759172718521,0.67,211.55,211.47,16.55081097]
[1759172718896,0.67,211.55,211.47,17.22081097]
[1759172720327,0.67,211.55,211.49,16.54924582]
[1759172720620,0.67,211.55,211.49,50.02924582]
[1759172720822,0.1,211.58,211.51,13.59559401]
[1759172721031,0.1,211.58,211.52,0.67]
[1759172721350,0.1,211.58,211.53,35.6884734]
[1759172721626,0.1,211.58,211.54,0.71]
[1759172721820,0.1,211.58,211.55,0.71]
[1759172722021,0.1,211.58,211.51,2.2084734]
[1759172722325,0.1,211.58,211.52,34.19]
[1759172722515,0.1,211.58,211.53,17.25611638]
[1759172722920,0.66,211.57,211.53,4.72746182]
[1759172723215,0.66,211.57,211.53,38.20746182]